fUSD/lending_fUSD_20250517
["ID","MTS","AMOUNT","RATE_DAILY","PERIOD"]
[361313794,1747452547157,-175.87533428,0.00014401,2]
[361313795,1747452553146,-24.12466572,0.00014401,2]
[361313796,1747452553166,-1903.06,0.00014897,2]
[361313797,1747452553186,-896.06269115,0.0001491,2]
[361313798,1747452553209,-200.0,0.0001491,2]
[361313799,1747452553230,-200.0,0.0001491,2]
[361313800,1747452553249,-1500.0,0.00014932,2]
[361313801,1747452553269,-190.26,0.00014946,2]
[361313802,1747452553288,-173.68,0.00014967,2]
[361313803,1747452553308,-1000.0,0.0001504,2]
[361313804,1747452559105,-1200.0,0.00015072,2]
[361313805,1747452559127,-300.0,0.00015072,2]
[361313806,1747452559149,-23900.0,0.00015073,2]
[361313807,1747452559170,-9484.31437981,0.000151,2]
[361313808,1747452559190,-110.03288015,0.00015117,2]
[361313809,1747452561130,-72.20711985,0.00015117,2]
[361313810,1747452561152,-319.79288015,0.00015256,2]
[361313811,1747452571076,-75.84711985,0.00015256,2]
[361313812,1747452571096,-200.73265005,0.00015256,2]
[361313825,1747452631822,-305.18,0.00015242,2]
[361313826,1747452631832,-49.26734995,0.00015256,2]
[361313827,1747452631842,-150.0,0.00015297,7]
[361313828,1747452631851,-437.4,0.00015455,2]
[361313829,1747452631860,-174.63,0.00015497,2]
[361313830,1747452631869,-4.24274888,0.000155,2]
[361313831,1747452631880,-2583.98725112,0.000155,2]
[361313832,1747452631889,-1289.47978913,0.000156,2]
[361313833,1747452631983,-399.01,0.000156,2]
[361313834,1747452631994,-899.74021087,0.000156,2]
[361313835,1747452632003,-37.90366064,0.00015615,2]
[361313836,1747452632014,-169.49633936,0.00015615,2]
[361313837,1747452632023,-300.0,0.000157,5]
[361313838,1747452632032,-1200.0,0.00015799,2]
[361313839,1747452632041,-300.0,0.00015799,2]
[361313840,1747452632050,-300.0,0.00015799,2]
[361313841,1747452632059,-2588.23,0.000158,2]
[361313842,1747452632068,-700.0,0.000158,5]
[361313843,1747452632077,-754.04,0.00015818,2]
[361313844,1747452632086,-1100.0,0.000159,5]
[361313845,1747452632096,-361.7666464,0.000159,2]
[361313847,1747452632105,-151.0,0.0001599,2]
[361313849,1747452632114,-1740.46701424,0.00016,2]
[361313873,1747452637724,-847.76298576,0.00016,2]
[361313874,1747452637734,-2588.23,0.00016,2]
[361313875,1747452637743,-361.76664634,0.00016107,2]
[361313876,1747452637753,-1173.37057356,0.00016138,2]
[361313877,1747452637762,-361.76664634,0.00016314,2]
[361313878,1747452637773,-4064.90886072,0.00016335,2]
[361313879,1747452637782,-2500.0,0.00016335,2]
[361313880,1747452637791,-255.0,0.00016337,2]
[361313881,1747452637801,-223.9913532,0.00016338,2]
[361313882,1747452637812,-1006.676,0.00016338,2]
[361313883,1747452637821,-11126.72513268,0.00016338,2]
[361313884,1747452637831,-374.14729089,0.00016338,2]
[361313885,1747452637840,-283.71154303,0.00016338,2]
[361313886,1747452637849,-864.45616425,0.00016352,2]
[361313887,1747452637858,-358.4079729,0.00016355,2]
[361313888,1747452637868,-1173.36,0.00016412,2]
[361313889,1747452637877,-399.43,0.00016425,3]
[361313890,1747452637886,-4064.90886072,0.00016427,2]
[361313891,1747452637895,-651.74,0.00016428,2]
[361313892,1747452637904,-651.74,0.00016428,2]
[361313893,1747452637913,-11126.72513265,0.00016429,2]
[361313894,1747452637923,-500.0,0.00016433,2]
[361313895,1747452637932,-500.0,0.00016433,2]
[361313896,1747452637942,-370.0,0.00016433,2]
[361313897,1747452637951,-330.2597268,0.00016433,2]
[361313898,1747452637960,-22575.15586514,0.00016434,2]
[361313906,1747452638348,-8865.00581883,0.00016434,2]
[361313907,1747452638394,-284.7359996,0.00016434,2]
[361313908,1747452638425,-4852.76248877,0.00016434,2]
[361313912,1747452639783,-177.28966628,0.00016428,2]
[361313913,1747452639793,-625.40284268,0.00016434,2]
[361313914,1747452639838,-2549.05889236,0.00016434,2]
[361313924,1747452643024,-9275.8724532,0.00016434,2]
[361313930,1747452646006,-1004.12019712,0.00016434,2]
[361313931,1747452646015,-627.5741254,0.00016435,2]
[361313932,1747452646024,-1135.1092757,0.00016435,2]
[361313933,1747452646060,-2905.70790749,0.00016435,2]
[361313934,1747452646072,-444.98692003,0.00016435,2]
[361313935,1747452736434,120.04476849,0.00013675,2]
[361313936,1747453141069,450.0,0.0001,2]
[361313937,1747453597321,-165.56898464,0.00012,2]
[361313938,1747453635517,-334.43101536,0.00012,2]
[361313939,1747453635539,-250.0,0.0001215,2]
[361313940,1747453635564,-58.3836118,0.000123,2]
[361313941,1747453641087,-141.6163882,0.000123,2]
[361313942,1747453641109,-200.0,0.000126,2]
[361313943,1747453641131,-200.0,0.000132,2]
[361313944,1747453641152,-200.0,0.000132,2]
[361313945,1747453641173,-250.0,0.000132,2]
[361313946,1747453641194,-200.0,0.000132,2]
[361313947,1747453641215,-250.0,0.000132,2]
[361313948,1747453641234,-1075.0,0.00013675,2]
[361313949,1747453641254,-600.06523151,0.00013675,2]
[361313950,1747453641274,-292.63,0.00013699,2]
[361313951,1747453641294,-550.0,0.00014,2]
[361313952,1747453641313,-152.59,0.00014975,2]
[361313953,1747453641339,-328.625659,0.00015062,2]
[361313954,1747453641359,-1200.0,0.00015138,2]
[361313955,1747453641379,-300.0,0.00015139,2]
[361313956,1747453641399,-1500.0,0.00015139,2]
[361313957,1747453641419,-2496.78509817,0.0001514,2]
[361313958,1747453725770,1486.98999654,0.00016,14]
[361313959,1747453749125,-2109.74490183,0.0001514,2]
[361313960,1747453749147,-936.49539351,0.00015177,2]
[361313961,1747453831854,-63.50460649,0.00015177,2]
[361313962,1747453831864,-1729.29539348,0.00015248,2]
[361313963,1747453831991,-3200.09805174,0.00015248,2]
[361313964,1747453832002,-1140.47350813,0.00015248,2]
[361313965,1747453832152,-2380.21952971,0.00015248,2]
[361314014,1747453837820,-8500.91351694,0.00015248,2]
[361314015,1747453837829,-1153.88,0.00015324,2]
[361314016,1747453837839,-300.0,0.00015416,2]
[361314017,1747453837848,-1200.0,0.00015416,2]
[361314018,1747453837857,-4532.61517906,0.00015428,2]
[361314019,1747453837869,-19155.91482094,0.00015428,2]
[361314020,1747453837878,-150.0,0.00015455,7]
[361314021,1747453837887,-517.64,0.000155,2]
[361314022,1747453837896,-517.64,0.000156,2]
[361314023,1747453837906,-151.0,0.00015615,2]
[361314024,1747453837915,-155.0,0.00015615,2]
[361314025,1747453837927,-207.4,0.00015615,2]
[361314026,1747453837937,-200.0,0.000157,5]
[361314027,1747453837947,-517.64,0.000158,2]
[361314028,1747453837958,-500.0,0.000158,5]
[361314029,1747453837969,-800.0,0.000159,5]
[361314030,1747453837979,-362.56867186,0.000159,2]
[361314031,1747453837988,-720.11,0.00015939,2]
[361314032,1747453837998,-778.76897263,0.00015973,2]
[361314033,1747453838007,-300.0,0.00015999,2]
[361314034,1747453838016,-600.0,0.00016,2]
[361314035,1747453838026,-517.64,0.00016,2]
[361314036,1747453838036,-517.64,0.00016,2]
[361314037,1747453838045,-362.56867175,0.00016107,2]
[361314038,1747453838055,-1173.37057356,0.00016138,2]
[361314039,1747453838064,-448.0,0.00016164,2]
[361314040,1747453838073,-150.45,0.00016164,2]
[361314041,1747453838082,-1156.61,0.00016164,2]
[361314042,1747453838091,-154.0,0.00016218,2]
[361314043,1747453838100,-1186.0,0.00016218,2]
[361314044,1747453838117,-182.74421356,0.00016218,2]
[361314045,1747453838131,-1186.0,0.00016218,2]
[361314046,1747453838140,-156.0,0.00016218,2]
[361314047,1747453838149,-1186.0,0.00016218,2]
[361314048,1747453838158,-156.0,0.00016218,2]
[361314049,1747453838167,-798.88855752,0.00016218,2]
[361314050,1747453838177,-1186.0,0.00016218,2]
[361314051,1747453838188,-1186.0,0.00016218,2]
[361314052,1747453838198,-1176.42117951,0.00016218,2]
[361314053,1747453838209,-1186.0,0.00016218,2]
[361314054,1747453838218,-1186.0,0.00016218,2]
[361314055,1747453838227,-1186.0,0.00016218,2]
[361314056,1747453838237,-1183.0,0.00016218,2]
[361314057,1747453838246,-1186.0,0.00016218,2]
[361314058,1747453838256,-1186.0,0.00016218,2]
[361314059,1747453838265,-1186.0,0.00016218,2]
[361314060,1747453838274,-1186.0,0.00016218,2]
[361314061,1747453838284,-330.7063632,0.00016241,2]
[361314062,1747453838293,-362.56867175,0.00016314,2]
[361314063,1747453838302,-229.8325,0.00016335,2]
[361314064,1747453838311,-191.9925885,0.00016338,2]
[361314065,1747453838320,-12026.7040986,0.00016338,2]
[361314066,1747453838329,-306.86246295,0.00016338,2]
[361314067,1747453838338,-358.4079729,0.00016355,2]
[361314068,1747453838348,-1173.36,0.00016412,2]
[361314069,1747453838357,-399.43,0.00016424,3]
[361314070,1747453838366,-1629.34,0.00016425,2]
[361314071,1747453838376,-1223.594,0.00016428,2]
[361314072,1747453838385,-177.28966629,0.00016428,2]
[361314073,1747453838394,-1477.3737837,0.00016429,2]
[361314074,1747453838417,-619.53400022,0.00016429,2]
[361314075,1747453838428,-398.41714257,0.00016429,2]
[361314076,1747453838458,-685.20688445,0.00016429,2]
[361314077,1747453838475,-2856.56167067,0.00016429,2]
[361314078,1747453839901,-303.38909548,0.00016429,2]
[361314079,1747453839912,-1551.75,0.00016429,2]
[361314080,1747453839955,-3111.32892012,0.00016429,2]
[361314081,1747453839966,-1023.14260137,0.00016429,2]
[361314082,1747453839976,-330.2597268,0.00016433,2]
[361314083,1747453839986,-62326.58463603,0.00016433,2]
[361314084,1747453840195,-1233.595,0.00016433,2]
[361314096,1747453843040,-633.2,0.00016433,2]
[361314097,1747453843150,-5900.11867625,0.00016433,2]
[361314098,1747453843161,-489.06,0.00016433,2]
[361314099,1747453843173,-449.71698496,0.00016433,2]
[361314104,1747453845850,-16551.06,0.00016433,2]
[361314105,1747453845983,-748.719994,0.00016433,2]
[361314106,1747453846062,-945.0,0.00016433,2]
[361314107,1747453846121,-79.49360555,0.00016433,2]
[361314108,1747453846132,-500.0,0.00016434,2]
[361314109,1747453846142,-500.0,0.00016434,2]
[361314110,1747453846153,-370.0,0.00016434,2]
[361314111,1747453846163,-40.9354489,0.00016435,2]
[361314112,1747453892139,550.5943713,0.00013676,2]
[361314115,1747454403933,-151.0556287,0.00013676,2]
[361314116,1747454403956,-58.2520194,0.00013676,2]
[361314117,1747454405411,-333.85787659,0.00013676,2]
[361314118,1747454406944,-107.89010401,0.00013676,2]
[361314119,1747454406965,-94.59440571,0.00013676,2]
[361314120,1747454408497,-177.7386183,0.00013676,2]
[361314121,1747454410264,-227.66697599,0.00013676,2]
[361314122,1747454410286,-205.12935786,0.00013676,2]
[361314123,1747454413505,-174.20902974,0.00013676,2]
[361314124,1747454558118,150.0,0.00014,5]
[361314125,1747454607330,-150.0,0.00013676,2]
[361314126,1747454607357,-73.25108954,0.00013699,2]
[361314127,1747454608658,-204.73891046,0.00013699,2]
[361314128,1747454722590,336.44800728,0.00027397,120]
[361314129,1747454846121,-152.59,0.00015159,2]
[361314130,1747454846142,-173.68,0.00015186,2]
[361314131,1747454846164,-181.46799744,0.00015204,2]
[361314132,1747454846187,-150.0,0.00015223,2]
[361314133,1747454846209,-1789.25,0.0001524,2]
[361314134,1747454846231,-27.5685631,0.00015304,2]
[361314135,1747454946556,450.0,0.0001,2]
[361314136,1747454949220,-490.0,0.00012,2]
[361314137,1747454951512,-10.0,0.00012,2]
[361314138,1747454951535,-517.76233826,0.00014,2]
[361314139,1747454955106,-32.23766174,0.00014,2]
[361314141,1747455032312,-517.70502891,0.00015304,2]
[361314142,1747455032323,-588.06369181,0.00015304,2]
[361314143,1747455032339,-366.66271618,0.00015304,2]
[361314144,1747455032348,-150.0,0.00015304,2]
[361314145,1747455032358,-200.0,0.00015332,2]
[361314146,1747455032368,-99.35547743,0.0001536,2]
[361314147,1747455032379,-295.56452257,0.0001536,2]
[361314148,1747455032388,-1000.0,0.00015426,2]
[361314149,1747455032398,-1200.0,0.00015499,2]
[361314150,1747455032407,-1342.77,0.000155,2]
[361314151,1747455032417,-517.64,0.000155,2]
[361314152,1747455032427,-300.0,0.00015598,2]
[361314153,1747455032436,-1288.92373521,0.000156,2]
[361314154,1747455032459,-53.84626479,0.000156,2]
[361314155,1747455032469,-517.64,0.000156,2]
[361314156,1747455032478,-277.52995607,0.00015615,2]
[361314157,1747455032488,-48.89797889,0.000157,5]
[361314158,1747455032499,-151.10202111,0.000157,5]
[361314160,1747455032508,-139.13782037,0.000157,2]
[361314162,1747455032524,-10.86217963,0.000157,2]
[361314164,1747455032534,-165.3,0.00015705,2]
[361314166,1747455032543,-868.98325311,0.000158,2]
[361314168,1747455032555,-473.78674689,0.000158,2]
[361314170,1747455032566,-517.64,0.000158,2]
[361314172,1747455032575,-500.0,0.000158,5]
[361314174,1747455032584,-150.0,0.000158,2]
[361314176,1747455032595,-708.98937342,0.0001584,2]
[361314178,1747455032615,-150.0,0.00015878,2]
[361314180,1747455032628,-800.0,0.000159,5]
[361314182,1747455032640,-362.56867186,0.000159,2]
[361314184,1747455032650,-701.65,0.0001594,2]
[361314185,1747455032659,-150.0,0.00015952,2]
[361314187,1747455032669,-150.0,0.00015952,2]
[361314189,1747455032678,-201.45,0.00015978,2]
[361314191,1747455032687,-150.0,0.00015978,2]
[361314192,1747455032697,-1155.86,0.00015978,2]
[361314194,1747455032706,-1342.77,0.00016,2]
[361314196,1747455032715,-889.59250962,0.00016,2]
[361314198,1747455032732,-453.17749038,0.00016,2]
[361314200,1747455032742,-517.64,0.00016,2]
[361314201,1747455032751,-517.64,0.00016,2]
[361314203,1747455032760,-116.47781529,0.00016,2]
[361314205,1747455032794,-276.65889505,0.00016,2]
[361314206,1747455032806,-206.86328966,0.00016,2]
[361314207,1747455032815,-371.22460794,0.00016022,2]
[361314208,1747455032827,-421.82556326,0.00016022,2]
[361314209,1747455032836,-97.38386424,0.00016107,2]
[361314210,1747455038061,-150.0,0.00015152,7]
[361314211,1747455038073,-204.60144798,0.00016107,2]
[361314212,1747455038116,-60.58335953,0.00016107,2]
[361314213,1747455038126,-266.55330956,0.00016115,2]
[361314214,1747455038141,-283.44669044,0.00016115,2]
[361314215,1747455038153,-291.99926594,0.00016116,2]
[361314216,1747455038168,-565.25073406,0.00016116,2]
[361314217,1747455038178,-9999.99,0.00016116,2]
[361314218,1747455038190,-76.90445909,0.00016116,2]
[361314219,1747455038202,-1330.79554091,0.00016116,2]
[361314220,1747455038212,-572.61,0.00016116,2]
[361314221,1747455038222,-299.99,0.00016116,4]
[361314222,1747455038233,-1417.4,0.00016116,2]
[361314223,1747455038243,-3800.46,0.00016116,2]
[361314224,1747455038253,-948.82,0.00016116,2]
[361314225,1747455038262,-150.99,0.00016116,2]
[361314226,1747455038272,-1224.07,0.00016116,2]
[361314227,1747455038281,-150.99,0.00016116,2]
[361314228,1747455038291,-1802.24406899,0.00016116,2]
[361314229,1747455038303,-692.74999987,0.00016116,2]
[361314230,1747455038315,-3656.55593114,0.00016116,2]
[361314231,1747455038324,-1173.37057356,0.00016138,2]
[361314232,1747455038334,-151.0,0.00016207,2]
[361314233,1747455038343,-155.0,0.00016207,2]
[361314234,1747455038354,-1307.0,0.00016216,2]
[361314235,1747455038363,-933.0,0.00016216,2]
[361314236,1747455038372,-799.0,0.00016216,2]
[361314237,1747455038382,-634.647,0.00016216,2]
[361314238,1747455038391,-1254.0,0.00016216,2]
[361314239,1747455038401,-923.669,0.00016216,2]
[361314240,1747455038410,-553.0,0.00016216,2]
[361314241,1747455038421,-333.9349953,0.00016216,2]
[361314242,1747455038468,-252.7970047,0.00016216,2]
[361314243,1747455038478,-1089.8929953,0.00016216,2]
[361314244,1747455038489,-368.1070047,0.00016216,2]
[361314245,1747455038498,-528.64843224,0.00016219,2]
[361314246,1747455038531,-1631.0,0.00016219,2]
[361314247,1747455038542,-757.19631892,0.00016219,2]
[361314248,1747455038553,-3033.64324884,0.00016219,2]
[361314249,1747455038562,-589.95717327,0.00016219,2]
[361314250,1747455038573,-564.35682673,0.00016219,2]
[361314251,1747455038583,-506.35148988,0.00016238,2]
[361314256,1747455040200,-202.63788354,0.00016238,2]
[361314257,1747455040210,-320.27400101,0.00016252,2]
[361314258,1747455040436,-99.38599899,0.00016252,2]
[361314259,1747455040446,-362.56867175,0.00016314,2]
[361314260,1747455040455,-330.42698386,0.00016335,2]
[361314261,1747455040464,-4146.51068009,0.00016335,2]
[361314262,1747455040474,-2500.0,0.00016335,2]
[361314263,1747455040483,-223.9913532,0.00016338,2]
[361314264,1747455040492,-2687.10680531,0.00016338,2]
[361314269,1747455043170,-8313.35309977,0.00016338,2]
[361314270,1747455043328,-813.46500527,0.00016338,2]
[361314271,1747455043339,-394.87756401,0.00016338,2]
[361314272,1747455043349,-358.4079729,0.00016355,2]
[361314273,1747455043359,-154.0,0.00016379,2]
[361314274,1747455043368,-1554.43969693,0.00016379,2]
[361314275,1747455043380,-4038.75735425,0.00016379,2]
[361314276,1747455043391,-873.01560385,0.00016379,2]
[361314277,1747455045986,-360.78734497,0.00016379,2]
[361314278,1747455045995,-4039.0,0.00016379,2]
[361314279,1747455046004,-839.0,0.00016379,2]
[361314280,1747455046013,-880.0,0.00016379,2]
[361314281,1747455046023,-1160.77287003,0.00016412,2]
[361314282,1747455046197,-12.58712997,0.00016412,2]
[361314283,1747455046206,-399.43,0.00016425,3]
[361314284,1747455046215,-151.88287003,0.00016425,2]
[361314285,1747455046355,-1477.45712997,0.00016425,2]
[361314286,1747455046365,-4146.51068008,0.00016427,2]
[361314287,1747455046376,-1223.594,0.00016428,2]
[361314288,1747455046385,-177.28966629,0.00016428,2]
[361314289,1747455046395,-13321.9434745,0.00016434,2]
[361314290,1747455046405,-6368.1727574,0.00016434,2]
[361314291,1747455046414,-6905.03229166,0.00016435,2]
[361314292,1747455949127,-250.15480568,0.00011,2]
[361314293,1747455949157,-345.27214972,0.00013549,2]
[361314294,1747455953975,653.13131927,6.94e-05,2]
[361314295,1747456043196,-341.18785028,0.00013549,2]
[361314296,1747456043217,-264.09,0.00013699,2]
[361314297,1747456043241,-146.22435725,0.00014904,2]
[361314298,1747456050079,-53.77564275,0.00014904,2]
[361314299,1747456050098,-1000.0,0.00015,5]
[361314300,1747456050118,-981.94366753,0.00015,3]
[361314303,1747456144977,20000.0,0.00025,30]
[361314304,1747456145074,-1818.05633247,0.00015,3]
[361314305,1747456145095,-102.99846753,0.00015215,2]
[361314316,1747456232216,-97.00153247,0.00015215,2]
[361314318,1747456232226,-200.0,0.00015274,2]
[361314320,1747456232235,-150.0,0.00015333,7]
[361314321,1747456232244,-1903.06,0.00015342,2]
[361314322,1747456232257,-200.0,0.00015402,2]
[361314323,1747456232266,-1500.0,0.00015429,2]
[361314324,1747456232275,-289.34214801,0.00015457,2]
[361314325,1747456232287,-710.65785199,0.00015457,2]
[361314326,1747456232296,-923.1,0.0001547,2]
[361314327,1747456232305,-80.65842933,0.00015652,2]
[361314328,1747456232356,-75.62557067,0.00015652,2]
[361314329,1747456232365,-686.46,0.00015813,2]
[361314330,1747456232374,-166.25,0.00015888,2]
[361314331,1747456232383,-73.60057691,0.00015899,2]
[361314332,1747456232394,-710.49,0.00015899,2]
[361314333,1747456232405,-415.90942309,0.00015899,2]
[361314334,1747456232414,-300.0,0.00015899,2]
[361314335,1747456232423,-150.45,0.000159,2]
[361314336,1747456232432,-1156.61,0.000159,2]
[361314337,1747456232440,-448.0,0.000159,2]
[361314338,1747456232450,-150.0,0.00015978,2]
[361314339,1747456232458,-150.0,0.00015978,2]
[361314340,1747456232467,-864.45616425,0.00016047,2]
[361314341,1747456232476,-251.46,0.00016138,2]
[361314342,1747456232486,-251.43,0.00016148,2]
[361314343,1747456232495,-150.0,0.000162,2]
[361314344,1747456232506,-1003.0,0.000162,3]
[361314345,1747456232515,-207.4,0.00016325,2]
[361314346,1747456232526,-150.99,0.00016334,2]
[361314347,1747456232537,-150.99,0.00016334,2]
[361314348,1747456232547,-3883.88008045,0.00016334,2]
[361314349,1747456232556,-155.0,0.00016337,2]
[361314350,1747456232565,-191.9925885,0.00016338,2]
[361314351,1747456232574,-2993.26540337,0.00016338,2]
[361314352,1747456232585,-939.44690143,0.00016338,2]
[361314353,1747456232596,-1348.16384016,0.00016338,2]
[361314354,1747456232607,-896.30361403,0.00016338,2]
[361314355,1747456238356,-226.69,0.00015274,2]
[361314356,1747456238677,-886.56646616,0.00016338,2]
[361314357,1747456238727,-592.58973189,0.00016338,2]
[361314358,1747456238738,-851.30437324,0.00016338,2]
[361314361,1747456240541,-714.56026703,0.00016338,2]
[361314362,1747456240553,-816.76193452,0.00016338,2]
[361314363,1747456240597,-433.77471277,0.00016338,2]
[361314393,1747456243718,-211.54517467,0.00016338,2]
[361314395,1747456243728,-375.68687052,0.00016338,2]
[361314397,1747456243737,-286.7263783,0.00016355,2]
[361314399,1747456243747,-1039.0,0.000164,3]
[361314401,1747456243756,-969.26157661,0.000164,3]
[361314403,1747456243767,-30.73842339,0.000164,3]
[361314404,1747456243777,-1000.0,0.000164,3]
[361314405,1747456243786,-272.06157651,0.000164,3]
[361314406,1747456243812,-727.93842349,0.000164,3]
[361314407,1747456243821,-927.8025428,0.000164,4]
[361314584,1747456752206,450.0,0.0001,2]
[361314585,1747457132085,-500.0,0.00012,2]
[361314586,1747457132106,-200.0,0.0001215,2]
[361314587,1747457132127,-349.55587976,0.000123,2]
[361314588,1747457244514,-82.3537546,0.000123,2]
[361314589,1747457244536,-405.4760815,0.0001312,2]
[361314590,1747457247174,-271.5339185,0.0001312,2]
[361314591,1747457247195,-200.0,0.000132,2]
[361314592,1747457247216,-200.0,0.000132,2]
[361314593,1747457247237,-200.0,0.0001353,2]
[361314594,1747457247256,-896.06269115,0.0001353,2]
[361314595,1747457247276,-271.36,0.00013699,2]
[361314596,1747457247297,-173.68,0.0001485,2]
[361314597,1747457247318,-1500.0,0.00014855,2]
[361314598,1747457247339,-1200.0,0.00014993,2]
[361314599,1747457247360,-401.64,0.00014994,2]
[361314600,1747457247380,-190.27,0.00014999,2]
[361314601,1747457247400,-300.0,0.00015241,2]
[361314602,1747457247420,-864.7519,0.00015242,2]
[361314603,1747457247441,-293.57,0.00015357,2]
[361314604,1747457247462,-17.15440135,0.00015384,2]
[361314605,1747457254270,-381.92425067,0.00015384,2]
[361314606,1747457297080,1657.25445609,0.00013,7]
[361314608,1747457368672,150.0,0.00014994,7]
[361314610,1747457410391,1000.0,0.00014952,2]
[361314615,1747457431396,-202.11,0.000153,2]
[361314616,1747457431405,-177.75362238,0.00015346,2]
[361314617,1747457431415,-164.15637762,0.00015384,2]
[361314618,1747457431451,-113.77497036,0.00015384,2]
[361314619,1747457431460,-200.0,0.00015406,2]
[361314620,1747457431469,-200.0,0.00015429,2]
[361314621,1747457431478,-352.33,0.0001543,2]
[361314622,1747457431487,-352.33,0.00015434,2]
[361314623,1747457431496,-352.33,0.00015438,2]
[361314624,1747457431505,-352.33,0.00015442,2]
[361314625,1747457431514,-352.33,0.00015446,2]
[361314626,1747457431523,-352.33,0.0001545,2]
[361314627,1747457431532,-352.33,0.00015454,2]
[361314628,1747457431541,-352.33,0.00015458,2]
[361314629,1747457431550,-352.33,0.00015462,2]
[361314630,1747457431558,-352.33,0.00015466,2]
[361314631,1747457431568,-352.33,0.0001547,2]
[361314632,1747457431577,-352.33,0.00015474,2]
[361314633,1747457431586,-352.33,0.00015478,2]
[361314634,1747457431594,-352.33,0.00015483,2]
[361314635,1747457431603,-352.33,0.00015487,2]
[361314636,1747457431612,-199.10645151,0.00015491,2]
[361314637,1747457431623,-153.22354849,0.00015491,2]
[361314638,1747457431632,-258.62087141,0.00015495,2]
[361314639,1747457431773,-93.70912859,0.00015495,2]
[361314640,1747457431782,-352.33,0.00015499,2]
[361314641,1747457431791,-352.33,0.00015503,2]
[361314642,1747457431801,-420.08087141,0.00015506,2]
[361314643,1747457431812,-583.18548524,0.00015506,2]
[361314644,1747457431823,-196.73364335,0.00015506,2]
[361314645,1747457431832,-352.33,0.00015507,2]
[361314646,1747457431842,-207.4,0.00015615,2]
[361314647,1747457431851,-155.0,0.00015615,2]
[361314648,1747457431859,-151.0,0.00015615,2]
[361314649,1747457431868,-422.07942903,0.00015615,2]
[361314650,1747457431877,-150.0,0.00015978,2]
[361314651,1747457431887,-864.45616425,0.00016128,2]
[361314652,1747457431897,-150.0,0.000162,2]
[361314654,1747457432212,-958.0,0.000162,4]
[361314655,1747457432222,-1000.0,0.000162,2]
[361314656,1747457432232,-1025.601,0.00016325,2]
[361314657,1747457432241,-169.384,0.00016335,2]
[361314658,1747457432250,-2563.65413637,0.00016335,2]
[361314659,1747457432293,-2893.96339555,0.00016335,2]
[361314660,1747457432304,-322.98459677,0.00016335,2]
[361314663,1747457437405,-229.8325,0.00016335,2]
[361314664,1747457437415,-229.3811026,0.00016355,2]
[361314665,1747457437425,-151.17,0.00016367,2]
[361314666,1747457437435,-72.1974572,0.000164,4]
[361314667,1747457437447,-1000.0,0.000164,5]
[361314668,1747457437455,-1000.0,0.000164,2]
[361314669,1747457437466,-1000.0,0.000164,3]
[361314670,1747457437476,-1000.0,0.000164,3]
[361314671,1747457437485,-198.0,0.000164,4]
[361314672,1747457437495,-150.0,0.00016423,2]
[361314673,1747457437506,-88.34209927,0.00016425,2]
[361314674,1747457437519,-422.74999925,0.00016425,2]
[361314675,1747457437583,-316.73,0.00016425,2]
[361314676,1747457437715,-348.35790148,0.00016425,2]
[361314677,1747457437727,-442.08612381,0.00016428,2]
[361314678,1747457437738,-2274.40999996,0.00016428,2]
[361314679,1747457437750,-1536.52,0.00016428,2]
[361314680,1747457437788,-1013.88322961,0.00016428,2]
[361314681,1747457437839,-478.736916,0.00016428,2]
[361314683,1747457439663,-3827.08487875,0.00016428,2]
[361314684,1747457439789,-15518.28218638,0.00016428,2]
[361314685,1747457439973,-821.76609784,0.00016428,2]
[361314686,1747457442996,-5974.53,0.00016428,2]